fUSD/lending_fUSD_20251217
["ID","MTS","AMOUNT","RATE_DAILY","PERIOD"]
[398895648,1765969623343,166.66,0.00015372,2]
[398895649,1765969623539,166.66,0.00015689,2]
[398895655,1765969812590,422.87348386,0.00015813,2]
[398895659,1765969831515,-166.66,0.00016006,2]
[398895660,1765969831525,-255.59158998,0.00016017,2]
[398895661,1765969831620,-44.40841002,0.00016017,2]
[398895662,1765969831629,-1200.0,0.00016027,2]
[398895663,1765969831637,-1200.0,0.00016028,2]
[398895664,1765969831646,-300.0,0.00016028,2]
[398895665,1765969831656,-272.0,0.00016028,2]
[398895666,1765969831664,-3083.59158988,0.00016029,2]
[398895667,1765969831675,-4031.53528395,0.00016029,2]
[398895668,1765969831686,-622.55672686,0.00016029,2]
[398895674,1765969837709,-1060.79010355,0.00016029,2]
[398895675,1765969837722,-2395.21208326,0.00016029,2]
[398895693,1765969839587,-4979.76509798,0.00016029,2]
[398895694,1765969839599,-259.34614479,0.00016029,2]
[398895695,1765969839610,-999.0,0.00016029,2]
[398895696,1765969839621,-1670.25,0.00016029,2]
[398895697,1765969839641,-2838.01296973,0.00016029,2]
[398895698,1765969839650,-300.0,0.00016048,2]
[398895699,1765969839659,-999.0,0.00016151,3]
[398895700,1765969839668,-166.66,0.00016323,2]
[398895701,1765969839677,-166.66,0.00016501,2]
[398895702,1765969839686,-550.0,0.00016599,2]
[398895703,1765969839695,-150.99,0.000166,2]
[398895704,1765969839704,-4508.95488211,0.000166,2]
[398895705,1765969839712,-166.66,0.0001664,2]
[398895706,1765969839721,-187.0,0.00016673,2]
[398895707,1765969839730,-2112.0,0.0001669,2]
[398895708,1765969839739,-300.0,0.0001669,2]
[398895709,1765969839748,-553.64373807,0.0001669,2]
[398895710,1765969839757,-620.0,0.0001669,2]
[398895711,1765969839766,-1529.071,0.00016696,2]
[398895712,1765969839775,-500.0,0.00016699,2]
[398895713,1765969839784,-500.0,0.00016699,2]
[398895714,1765969839793,-1009.78415087,0.000167,2]
[398895715,1765969839803,-460.06,0.000168,2]
[398895716,1765969839812,-658.77,0.000168,2]
[398895717,1765969839821,-320.6,0.000168,2]
[398895718,1765969839830,-658.77,0.000168,2]
[398895719,1765969839839,-658.77,0.000168,2]
[398895720,1765969839848,-312.0,0.00016849,2]
[398895721,1765969839858,-4508.95488202,0.00016856,2]
[398895722,1765969839867,-481.46730423,0.00016873,2]
[398895723,1765969839876,-155.49679582,0.00016893,2]
[398895724,1765969839885,-222.63317808,0.00016893,2]
[398895725,1765969839894,-3562.85,0.00016899,2]
[398895726,1765969839904,-3562.85,0.00016899,2]
[398895727,1765969839913,-3562.85,0.00016899,2]
[398895728,1765969839923,-222.63317808,0.00016899,2]
[398895729,1765969839934,-500.0,0.00016899,2]
[398895730,1765969839943,-419.15158488,0.00016899,2]
[398895731,1765969839953,-500.0,0.00016899,2]
[398895732,1765969839962,-500.0,0.00016899,2]
[398895733,1765969839976,-475.38188143,0.00016899,2]
[398895734,1765969839986,-911.91449922,0.000169,2]
[398895735,1765969839995,-5601.90284114,0.000169,2]
[398895736,1765969840004,-2466.51467312,0.000169,2]
[398895737,1765969840014,-679.53610816,0.000169,2]
[398895738,1765969840023,-3596.28922654,0.00016908,2]
[398895739,1765969840033,-191.58,0.00016932,2]
[398895740,1765969840043,-3240.0,0.00016932,2]
[398895741,1765969840053,-156.24,0.00016952,2]
[398895742,1765969840063,-266.89009437,0.00016959,2]
[398895743,1765969840072,-189.65666296,0.00016966,2]
[398895744,1765969840083,-500.0,0.00016973,2]
[398895745,1765969840093,-502.93181499,0.00016973,2]
[398895746,1765969840102,-500.0,0.00016973,2]
[398895747,1765969840111,-500.0,0.00016973,2]
[398895748,1765969840120,-500.0,0.00016973,2]
[398895749,1765969840130,-201.55783771,0.00016973,2]
[398895750,1765969840139,-476.4698319,0.00016973,2]
[398895751,1765969840148,-500.0,0.00016973,2]
[398895752,1765969840157,-500.0,0.00016973,2]
[398895753,1765969840167,-500.0,0.00016973,2]
[398895754,1765969840177,-500.0,0.00016973,2]
[398895755,1765969840186,-341.41992772,0.00016973,2]
[398895756,1765969840195,-500.0,0.00016973,2]
[398895757,1765969840204,-500.0,0.00016973,2]
[398895758,1765969840214,-500.0,0.00016973,2]
[398895759,1765969840226,-500.0,0.00016973,2]
[398895760,1765969840636,-500.0,0.00016973,2]
[398895761,1765969840648,-508.13351666,0.00016983,2]
[398895762,1765969840659,-3562.85,0.00016986,2]
[398895763,1765969840668,-593.21,0.00016986,2]
[398895764,1765969840679,-151.0,0.0001699,2]
[398895765,1765969840688,-325.05418284,0.0001699,2]
[398895766,1765969840698,-3440.74557358,0.0001699,2]
[398895767,1765969840707,-150.0,0.00016992,2]
[398895768,1765969840717,-500.0,0.00016992,2]
[398895769,1765969840726,-500.0,0.00016992,2]
[398895770,1765969840736,-500.0,0.00016992,2]
[398895771,1765969840745,-332.70072421,0.00016992,2]
[398895772,1765969840755,-500.0,0.00016992,2]
[398895773,1765969840764,-178.18674808,0.00016992,2]
[398895774,1765969840774,-289.58416138,0.00016992,2]
[398895775,1765969840784,-11505.0,0.00016993,2]
[398895776,1765969840793,-2632.1990261,0.00016993,2]
[398895777,1765969840803,-14669.0950544,0.00016993,2]
[398895778,1765969840812,-3562.85,0.00016993,2]
[398895779,1765969840822,-1690.5608983,0.00016993,2]
[398895780,1765969840831,-231972.21884034,0.00016993,2]
[398895781,1765969840847,-39416.0,0.00016993,2]
[398895782,1765969840862,-1211.97758565,0.00016993,2]
[398895783,1765969840879,-528.31409661,0.00016993,2]
[398895784,1765969840890,-591.566251,0.00016993,2]
[398895785,1765969840901,-3470.90053454,0.00016993,2]
[398895790,1765969842675,-42850.62634397,0.00016993,2]
[398895791,1765969842687,-18159.32056425,0.00016993,2]
[398895792,1765969842781,-17257.1212,0.00016993,2]
[398895793,1765969842835,-428.03955324,0.00016993,2]
[398895794,1765969842941,-282.36355332,0.00016986,2]
[398895795,1765969846384,-311.91644668,0.00016986,2]
[398895796,1765969846397,-301.89117622,0.00016993,2]
[398895797,1765969846431,-518.25689385,0.00016993,2]
[398895798,1765969846447,-1943.74134705,0.00016993,2]
[398895799,1765969846461,-890.84637,0.00016993,2]
[398895800,1765969846477,-12305.62174631,0.00016993,2]
[398895801,1765969846492,-2147.1,0.00016993,2]
[398895884,1765970720054,3189.04001216,9e-05,2]
[398895890,1765970921345,100000.0,0.00016,4]
[398895911,1765971031677,-1102.05,0.00015684,2]
[398895913,1765971031687,-300.0,0.00015736,2]
[398895915,1765971031698,-250.0,0.00015787,2]
[398895917,1765971031707,-300.0,0.00015836,2]
[398895918,1765971031717,-300.0,0.00015836,2]
[398895919,1765971031726,-357.5098784,0.00015879,2]
[398895920,1765971031742,-339.4901216,0.00015879,2]
[398895921,1765971031751,-436.83428485,0.00015889,2]
[398895922,1765971031762,-545.35015898,0.00015889,2]
[398895923,1765971031786,-37.33555617,0.00015889,2]
[398895924,1765971031795,-697.0,0.0001591,2]
[398895925,1765971031804,-200.0,0.00015923,2]
[398895926,1765971031813,-300.0,0.00015999,2]
[398895927,1765971031822,-300.0,0.00015999,2]
[398895928,1765971031831,-1200.0,0.00015999,2]
[398895929,1765971031841,-300.0,0.00015999,2]
[398895930,1765971031850,-6.5049944,0.00016,4]
[398895931,1765971031862,-8979.16543384,0.00016,4]
[398895932,1765971031887,-3513.22526362,0.00016,4]
[398895933,1765971031959,-287.06431718,0.00016,4]
[398895952,1765971037736,-488.66430191,0.00016,4]
[398895953,1765971037751,-2053.64958982,0.00016,4]
[398895954,1765971037793,-2069.14542182,0.00016,4]
[398895955,1765971037849,-1221.26746359,0.00016,4]
[398895956,1765971037903,-254.18043806,0.00016,4]
[398895957,1765971037914,-358.33485164,0.00016,4]
[398895958,1765971037926,-1513.88525483,0.00016,4]
[398895969,1765971039804,-258.6914863,0.00016,4]
[398895970,1765971039821,-590.9981233,0.00016,4]
[398895971,1765971039858,-611.96225291,0.00016,4]
[398895972,1765971039870,-397.80797391,0.00016,4]
[398895973,1765971040122,-2993.80498,0.00016,4]
[398895974,1765971040178,-4350.2,0.00016,4]
[398895975,1765971040189,-15372.87488714,0.00016,4]
[398895978,1765971043097,-5589.1068539,0.00016,4]
[398895979,1765971043106,-190.29,0.00016062,2]
[398895980,1765971043116,-5000.00834272,0.000162,5]
[398895981,1765971043125,-697.0,0.00016205,2]
[398895982,1765971043135,-697.0,0.00016218,2]
[398895983,1765971043144,-853.0,0.00016368,2]
[398895984,1765971043154,-853.0,0.00016375,2]
[398895985,1765971043163,-853.0,0.00016449,2]
[398895986,1765971043172,-219.48687572,0.00016459,2]
[398895987,1765971043182,-474.37321396,0.00016459,2]
[398895988,1765971043191,-2112.0,0.0001646,2]
[398895989,1765971043201,-300.0,0.0001646,2]
[398895990,1765971043210,-168.0,0.00016486,2]
[398895991,1765971043219,-2341.2151,0.00016498,2]
[398895992,1765971043229,-21628.4924,0.00016498,2]
[398895993,1765971043239,-13435.7866,0.00016498,2]
[398895994,1765971043249,-3607.16390567,0.000165,2]
[398895995,1765971043258,-853.0,0.00016503,2]
[398895996,1765971043268,-3607.16390561,0.00016544,2]
[398895997,1765971043277,-153.26,0.00016581,2]
[398895998,1765971043287,-816.35689441,0.00016583,2]
[398895999,1765971043296,-553.64373807,0.00016588,2]
[398896000,1765971043306,-620.0,0.00016588,2]
[398896001,1765971043315,-3607.16390561,0.00016589,2]
[398896002,1765971043325,-481.46730423,0.00016595,2]
[398896003,1765971043334,-1223.257,0.00016597,2]
[398896004,1765971043343,-500.0,0.00016597,2]
[398896005,1765971043352,-500.0,0.00016597,2]
[398896006,1765971043361,-358.48883582,0.000166,2]
[398896007,1765971043370,-3607.16390561,0.00016633,2]
[398896008,1765971043380,-3607.16390561,0.00016678,2]
[398896009,1765971043389,-853.0,0.00016683,2]
[398896010,1765971043398,-500.0,0.00016699,2]
[398896011,1765971043408,-500.0,0.00016699,2]
[398896012,1765971043417,-3607.16390561,0.00016722,2]
[398896013,1765971043427,-853.0,0.00016743,2]
[398896014,1765971043437,-3607.16390561,0.00016767,2]
[398896015,1765971043446,-3607.16390561,0.00016811,2]
[398896016,1765971043456,-500.0,0.00016822,2]
[398896017,1765971043465,-853.0,0.00016822,2]
[398896018,1765971043474,-816.3568944,0.00016824,2]
[398896019,1765971043484,-5098.39919,0.0001683,2]
[398896020,1765971043495,-3607.16390561,0.00016856,2]
[398896021,1765971043503,-168.0,0.00016859,2]
[398896022,1765971043513,-200.0,0.00016864,2]
[398896023,1765971043522,-168.0,0.00016875,2]
[398896024,1765971043532,-933.62674917,0.00016893,2]
[398896025,1765971043541,-155.49679582,0.00016897,2]
[398896026,1765971043550,-3607.16390561,0.000169,2]
[398896027,1765971043559,-219.63809581,0.000169,2]
[398896028,1765971043569,-484.16646448,0.000169,2]
[398896029,1765971043578,-1312.46329634,0.000169,2]
[398896030,1765971043587,-5506.36440648,0.000169,2]
[398896031,1765971043596,-1359.07221628,0.000169,2]
[398896032,1765971043606,-190.29,0.00016954,2]
[398896033,1765971043615,-168.0,0.00016967,2]
[398896034,1765971043624,-500.0,0.00016973,2]
[398896035,1765971043634,-500.0,0.00016973,2]
[398896036,1765971043644,-500.0,0.00016973,2]
[398896037,1765971043656,-266.8433042,0.00016973,2]
[398896038,1765971043665,-276.35412541,0.00016973,2]
[398896039,1765971043674,-500.0,0.00016973,2]
[398896040,1765971043683,-500.0,0.00016973,2]
[398896041,1765971043694,-500.0,0.00016973,2]
[398896042,1765971043703,-500.71124086,0.00016973,2]
[398896043,1765971043712,-500.0,0.00016973,2]
[398896044,1765971043723,-500.0,0.00016973,2]
[398896045,1765971043732,-334.11795043,0.00016973,2]
[398896046,1765971043741,-168.0,0.00016975,2]
[398896047,1765971043750,-569.52,0.00016986,2]
[398896048,1765971043759,-151.0,0.0001699,2]
[398896049,1765971043768,-216.70278856,0.0001699,2]
[398896051,1765971043778,-216.70278856,0.0001699,2]
[398896052,1765971043786,-216.70278856,0.0001699,2]
[398896053,1765971043796,-500.0,0.00016992,2]
[398896054,1765971043805,-150.0,0.00016992,2]
[398896055,1765971043813,-500.0,0.00016992,2]
[398896056,1765971043822,-500.0,0.00016992,2]
[398896057,1765971043831,-500.0,0.00016992,2]
[398896058,1765971043840,-177.59969598,0.00016992,2]
[398896059,1765971043849,-299.39327407,0.00016992,2]
[398896060,1765971043858,-246.48468643,0.00016992,2]
[398896061,1765971043867,-162002.6336294,0.00016993,2]
[398896062,1765971043875,-1738.7397377,0.00016993,2]
[398896063,1765971043884,-132763.3609295,0.00016993,2]
[398896064,1765971043893,-1974.1492695,0.00016993,2]
[398896065,1765971043902,-3145.0974795,0.00016993,2]
[398896066,1765971043912,-1267.9206738,0.00016993,2]
[398896067,1765971043921,-498.13985757,0.00016993,2]
[398896068,1765971043930,-201536.4196762,0.00016993,2]
[398896069,1765971043939,-101246.1763881,0.00016993,2]
[398896070,1765971043948,-174.9499321,0.00016993,2]
[398896071,1765971043957,-151.0,0.00016997,2]
[398896072,1765971043966,-3562.85,0.00016999,2]
[398896073,1765971043975,-3562.85,0.00016999,2]
[398896074,1765971043984,-3562.85,0.00016999,2]
[398896075,1765971043993,-3562.85,0.00016999,2]
[398896076,1765971044002,-3562.85,0.00016999,2]
[398896077,1765971044011,-1073.18816268,0.00016999,2]
[398896078,1765971044023,-1170.39,0.00016999,2]
[398896079,1765971044045,-1319.27183732,0.00016999,2]
[398896080,1765971044054,-3562.85,0.00016999,2]
[398896081,1765971044063,-300.0,0.00016999,2]
[398896082,1765971044072,-500.0,0.00016999,2]
[398896083,1765971044081,-500.0,0.00016999,2]
[398896084,1765971044090,-500.0,0.00016999,2]
[398896085,1765971044099,-500.0,0.00016999,2]
[398896086,1765971044108,-500.0,0.00016999,2]
[398896087,1765971044117,-500.0,0.00016999,2]
[398896088,1765971044126,-500.0,0.00016999,2]
[398896089,1765971044135,-500.0,0.00016999,2]
[398896090,1765971044144,-500.0,0.00016999,2]
[398896091,1765971044153,-500.0,0.00016999,2]
[398896092,1765971044162,-500.0,0.00016999,2]
[398896093,1765971044172,-500.0,0.00016999,2]
[398896094,1765971044181,-256.46,0.00016999,2]
[398896095,1765971044191,-200.83834721,0.00016999,2]
[398896096,1765971044200,-14138.76599789,0.00017,2]
[398896097,1765971044211,-726.09945919,0.00017,2]
[398896098,1765971044244,-1888.0,0.00017,2]
[398896102,1765971045816,-1203.57354655,0.00017,2]
[398896103,1765971045830,-303.8,0.00017,2]
[398896104,1765971045841,-522.02000001,0.00017,2]
[398896105,1765971045983,-1382.98602017,0.00017,2]
[398896106,1765971045995,-1115.8401823,0.00017,2]
[398896107,1765971046035,-7952.77,0.00017,2]
[398896149,1765971227930,5525.0,0.000123,5]
[398896221,1765972231913,-173.37,0.00012449,2]
[398896222,1765972231923,-250.0,0.00012902,2]
[398896223,1765972231933,-250.0,0.00013694,2]
[398896224,1765972231943,-195.0,0.00013694,2]
[398896225,1765972231952,-250.0,0.00013694,2]
[398896226,1765972231963,-615.01,0.00013699,2]
[398896227,1765972231972,-1200.0,0.00013833,2]
[398896228,1765972231982,-300.0,0.00013833,2]
[398896229,1765972231994,-300.0,0.00013834,2]
[398896230,1765972232004,-300.0,0.00013834,2]
[398896231,1765972232013,-300.0,0.00013834,2]
[398896232,1765972232023,-300.0,0.00013834,2]
[398896233,1765972232032,-300.0,0.00013834,2]
[398896234,1765972232042,-500.0,0.00014493,2]
[398896235,1765972232051,-500.0,0.00014986,2]
[398896236,1765972232060,-420.0,0.00015158,2]
[398896237,1765972232070,-1680.0,0.00015217,2]
[398896238,1765972232079,-150.0,0.00015288,2]
[398896239,1765972232089,-150.0,0.00015288,2]
[398896240,1765972232099,-150.0,0.00015288,2]
[398896241,1765972232108,-150.0,0.00015288,2]
[398896242,1765972232118,-150.0,0.00015288,2]
[398896243,1765972232127,-150.0,0.00015288,2]
[398896244,1765972232137,-221.28365954,0.00015288,2]
[398896245,1765972232146,-154.80455544,0.00015288,2]
[398896246,1765972232155,-150.0,0.00015288,2]
[398896247,1765972232164,-150.0,0.00015288,2]
[398896248,1765972232174,-156.03264286,0.00015288,2]
[398896250,1765972232183,-867.88526287,0.00015332,2]
[398896252,1765972232192,-150.0,0.00015468,2]
[398896254,1765972232201,-755.98,0.00015472,2]
[398896256,1765972232211,-1407.98,0.00015509,2]
[398896258,1765972232220,-465.0,0.00015534,2]
[398896260,1765972232229,-999.0,0.00015671,3]
[398896262,1765972232238,-200.0,0.00015677,2]
[398896264,1765972232248,-150.0,0.00015712,2]
[398896266,1765972232257,-150.0,0.00015854,2]
[398896268,1765972232267,-328.11547293,0.000159,2]
[398896269,1765972232277,-328.11547292,0.000159,2]
[398896270,1765972232286,-434.49955182,0.00016,2]
[398896271,1765972232296,-503.75956972,0.00016,2]
[398896272,1765972232308,-1600.0,0.00016031,2]
[398896273,1765972232318,-166.7,0.00016077,2]
[398896274,1765972232329,-110.58715614,0.00016137,2]
[398896275,1765972232356,-39.41284386,0.00016137,2]
[398896276,1765972232365,-150.0,0.00016137,2]
[398896277,1765972232375,-328.11547292,0.00016311,2]
[398896278,1765972232384,-5000.0,0.00016398,2]
[398896279,1765972232395,-1670.7433195,0.00016419,2]
[398896280,1765972232404,-631.31488142,0.00016419,2]
[398896281,1765972232413,-550.0,0.00016419,2]
[398896282,1765972232422,-150.0,0.0001642,2]
[398896283,1765972232432,-300.0,0.00016428,2]
[398896284,1765972232441,-2112.0,0.00016428,2]
[398896285,1765972232451,-10864.65,0.00016438,2]
[398896286,1765972232461,-1670.74331944,0.00016472,2]
[398896287,1765972232470,-631.31488138,0.00016488,2]
[398896288,1765972232479,-553.64373807,0.00016488,2]
[398896289,1765972232489,-620.0,0.00016488,2]
[398896290,1765972232498,-226.0,0.00016495,2]
[398896291,1765972232507,-500.0,0.00016497,2]
[398896292,1765972232516,-500.0,0.00016497,2]
[398896293,1765972232526,-978.605,0.00016497,2]
[398896294,1765972232535,-500.0,0.00016497,2]
[398896295,1765972232544,-499.99999999,0.00016497,2]
[398896296,1765972232553,-500.0,0.00016497,2]
[398896297,1765972232563,-500.0,0.00016497,2]
[398896298,1765972232572,-741.57040835,0.00016526,2]
[398896299,1765972238067,-929.17291109,0.00016526,2]
[398896300,1765972238077,-631.31488138,0.00016556,2]
[398896301,1765972238086,-150.0,0.00016562,2]
[398896302,1765972238096,-481.46730423,0.00016568,2]
[398896303,1765972238105,-1083.45187097,0.00016579,2]
[398896304,1765972238173,-454.44243615,0.00016579,2]
[398896396,1765972243070,-1097.0,0.00016398,2]
[398896397,1765972243081,-595.46162956,0.00016398,2]
[398896398,1765972243227,-522.07369526,0.00016398,2]
[398896399,1765972243239,-583864.89847518,0.00016398,2]
[398896400,1765972243249,-132.84901232,0.00016579,2]
[398896401,1765972243258,-194.0,0.00016588,2]
[398896402,1765972243267,-407.0,0.00016609,2]
[398896403,1765972243277,-631.31488138,0.00016625,2]
[398896404,1765972243286,-1670.74331944,0.00016633,2]
[398896405,1765972243295,-1670.74331944,0.00016686,2]
[398896406,1765972243304,-631.31488138,0.00016694,2]
[398896407,1765972243669,-164.0,0.00016712,2]
[398896408,1765972243688,-2351.0,0.00016738,2]
[398896409,1765972243698,-1670.74331944,0.0001674,2]
[398896410,1765972243707,-631.31488138,0.00016763,2]
[398896411,1765972243716,-1670.74331944,0.00016793,2]
[398896412,1765972243726,-631.31488138,0.00016831,2]
[398896413,1765972243735,-1670.74331944,0.00016847,2]
[398896414,1765972243744,-200.0,0.00016863,2]
[398896415,1765972243754,-200.0,0.00016864,2]
[398896416,1765972243763,-200.0,0.00016864,2]
[398896417,1765972243772,-328.11547292,0.00016873,2]
[398896418,1765972243782,-168.0,0.00016878,2]
[398896419,1765972243791,-155.49679582,0.00016894,2]
[398896420,1765972243802,-1002.86,0.000169,2]
[398896421,1765972243811,-800.25149934,0.000169,2]
[398896422,1765972243820,-1670.74331944,0.000169,2]
[398896423,1765972243829,-631.31488138,0.000169,2]
[398896424,1765972243838,-166.50103564,0.000169,2]
[398896425,1765972243847,-44718.33499353,0.000169,2]
[398896426,1765972243855,-1093.71941365,0.000169,2]
[398896427,1765972243864,-500.0,0.00016973,2]
[398896428,1765972243873,-500.79172108,0.00016973,2]
[398896429,1765972243882,-500.0,0.00016973,2]
[398896430,1765972243891,-500.0,0.00016973,2]
[398896431,1765972243900,-500.0,0.00016973,2]
[398896432,1765972243909,-500.0,0.00016973,2]
[398896433,1765972243918,-2112.0,0.00016976,2]
[398896434,1765972243927,-151.0,0.00016983,2]
[398896435,1765972243940,-570.34,0.00016986,2]
[398896436,1765972243948,-150.0,0.00016986,2]
[398896437,1765972243958,-71438.06,0.00016986,2]
[398896438,1765972243967,-150.0,0.00016986,2]
[398896439,1765972243975,-150.0,0.00016986,2]
[398896440,1765972243984,-150.0,0.00016986,2]
[398896441,1765972243994,-150.0,0.00016986,2]
[398896442,1765972244003,-150.0,0.00016986,2]
[398896443,1765972244012,-154.73407225,0.00016986,2]
[398896444,1765972244021,-150.0,0.00016986,2]
[398896445,1765972244030,-150.0,0.00016986,2]
[398896447,1765972244039,-617.48940951,0.00016993,2]
[398896449,1765972244048,-209.57529185,0.00016993,2]
[398896450,1765972244057,-3305.3942849,0.00016994,2]
[398896451,1765972244066,-1304.0548032,0.00016994,2]
[398896452,1765972244075,-34733.8450543,0.00016994,2]
[398896453,1765972244085,-1480.6119522,0.00016994,2]
[398896454,1765972244094,-16232.24806735,0.00016994,2]
[398896456,1765972244189,-599.66332771,0.00016994,2]
[398896458,1765972246014,-500.0,0.00016994,2]
[398896459,1765972246026,-327.86714867,0.00016994,2]
[398896460,1765972454046,153.31,7.964e-05,2]
[398896461,1765972454249,153.31,8.688e-05,2]
[398896462,1765972454454,153.31,9.412e-05,2]
[398896463,1765972454647,153.31,0.00010136,2]
[398896464,1765972455062,153.31,0.0001086,2]
[398896465,1765972455258,153.31,0.00011584,2]
[398896885,1765973432244,-153.31,0.00012308,2]
[398896886,1765973432259,-248.64594049,0.0001267,2]
[398896887,1765973432269,-153.31,0.00013032,2]
[398896888,1765973432279,-250.0,0.00013539,2]
[398896889,1765973432288,-195.0,0.00013539,2]
[398896890,1765973432298,-153.31,0.00013756,2]
[398896891,1765973432308,-29.21679428,0.0001448,2]
[398896892,1765973432330,-124.09320572,0.0001448,2]
[398896893,1765973432340,-153.31,0.00015204,2]
[398896894,1765973432349,-166.66,0.00015316,2]
[398896895,1765973432359,-369.0,0.00015534,2]
[398896896,1765973432368,-480.82,0.00015541,2]
[398896897,1765973432377,-166.66,0.00015638,2]
[398896898,1765973432387,-1000.0,0.00015695,2]
[398896899,1765973432396,-200.0,0.00015717,2]
[398896900,1765973432406,-983.45816474,0.00015726,2]
[398896901,1765973432417,-234.40183526,0.00015726,2]
[398896902,1765973432426,-153.31,0.00015928,2]
[398896903,1765973432435,-166.66,0.00015961,2]
[398896904,1765973432445,-300.0,0.00016147,2]
[398896905,1765973432455,-300.0,0.00016147,2]
[398896906,1765973432465,-1200.0,0.00016147,2]
[398896907,1765973432474,-2112.0,0.00016148,2]
[398896908,1765973432484,-300.0,0.00016148,2]
[398896909,1765973432493,-250.0,0.00016263,2]
[398896910,1765973432503,-166.66,0.00016283,2]
[398896911,1765973432512,-658.77,0.00016449,2]
[398896912,1765973432521,-658.77,0.00016449,2]
[398896913,1765973432531,-754.92,0.00016449,2]
[398896918,1765973432891,-500.0,0.00016497,2]
[398896919,1765973432918,-436.26074643,0.00016497,2]
[398896920,1765973432928,-542.31552515,0.00016497,2]
[398896921,1765973432938,-286.90864955,0.00016497,2]
[398896922,1765973432948,-502.6322512,0.00016497,2]
[398896923,1765973432957,-500.0,0.00016497,2]
[398896924,1765973432967,-500.0,0.00016497,2]
[398896925,1765973432976,-481.46730423,0.00016581,2]
[398896926,1765973432985,-166.66,0.00016605,2]
[398896927,1765973432994,-200.0,0.0001665,2]
[398896928,1765973433003,-200.0,0.0001665,2]
[398896929,1765973433014,-553.64373807,0.0001665,2]
[398896930,1765973433023,-500.0,0.0001665,2]
[398896931,1765973433034,-308.4975971,0.0001665,2]
[398896932,1765973433043,-3577.5225373,0.0001666,2]
[398896933,1765973433052,-2112.0,0.00016696,2]
[398896934,1765973433062,-550.0,0.00016757,2]
[398896935,1765973433071,-1028.7533,0.00016822,2]
[398896936,1765973433081,-1865.8927,0.00016856,2]
[398896937,1765973433090,-2126.192,0.00016856,2]
[398896938,1765973433099,-200.0,0.00016864,2]
[398896939,1765973433109,-669.73461554,0.00016873,2]
[398896940,1765973433118,-669.7346155,0.00016876,2]
[398896941,1765973433127,-669.7346155,0.00016879,2]
[398896942,1765973433137,-669.7346155,0.00016882,2]
[398896943,1765973433146,-669.7346155,0.00016885,2]
[398896944,1765973433155,-669.7346155,0.00016888,2]
[398896945,1765973433165,-669.7346155,0.00016891,2]
[398896946,1765973433177,-500.0,0.00016893,2]
[398896947,1765973433190,-500.0,0.00016893,2]
[398896948,1765973433200,-500.0,0.00016893,2]
[398896949,1765973433209,-500.0,0.00016893,2]
[398896950,1765973433221,-500.0,0.00016893,2]
[398896951,1765973433231,-479.15889042,0.00016893,2]
[398896952,1765973433240,-18553.0024,0.00016894,2]
[398896953,1765973433252,-669.7346155,0.00016894,2]
[398896954,1765973433261,-669.7346155,0.00016897,2]
[398896955,1765973433271,-550.4147983,0.000169,2]
[398896956,1765973433280,-300.0,0.000169,3]
[398896957,1765973433290,-685.92985656,0.000169,2]
[398896958,1765973433299,-10000.0,0.000169,2]
[398896959,1765973433309,-8096.46445786,0.000169,2]
[398896960,1765973433318,-669.7346155,0.000169,2]
[398896961,1765973433328,-155.49679582,0.000169,2]
[398896962,1765973433337,-172.59873995,0.000169,2]
[398896963,1765973433346,-322.77764298,0.000169,2]
[398896964,1765973433356,-3670.90960432,0.000169,2]
[398896965,1765973433365,-911.4328447,0.000169,2]